bitfinex/quotes_ETHUSD_20240729
["timestamp","ask_amount","ask_price","bid_price","bid_amount"]
[1722265430513,0.1479984,3337.1,3336.8,0.599379]
[1722265430720,0.1479984,3337.1,3336.8,6.596239]
[1722265431312,0.1479984,3337.1,3336.9,2.99676]
[1722265431520,0.1479984,3337.1,3336.8,3.599379]
[1722265432323,0.1479984,3337.1,3336.8,3.0]
[1722265432484,0.1479984,3337.1,3336.7,3.0]
[1722265432685,0.1479984,3337.1,3336.6,5.99701]
[1722265432985,0.1479984,3337.1,3336.7,2.99695]
[1722265433185,0.1479984,3337.1,3336.8,3.0]
[1722265435124,0.1479984,3337.1,3336.9,2.99678]
[1722265435342,0.1479984,3337.1,3336.8,3.59969]
[1722265435514,0.1479984,3337.1,3336.8,6.59652]
[1722265436232,0.1479984,3337.1,3336.9,2.99678]
[1722265436406,0.1479984,3337.1,3336.9,2.99672]
[1722265436616,0.1479984,3337.1,3337.0,0.959332]
[1722265436817,0.1479984,3337.1,3337.0,3.956032]
[1722265437035,0.1479984,3337.1,3337.0,6.956032]
[1722265437345,0.1479984,3337.1,3337.0,12.861732]
[1722265438245,2.3106,3338.9,3338.0,2.99578]
[1722265438734,2.3106,3338.9,3338.0,2.99575]
[1722265439044,2.3106,3338.9,3338.1,0.05991079]
[1722265439272,2.3106,3338.9,3338.3,2.99553]
[1722265439428,2.3106,3338.9,3338.1,2.909]
[1722265439634,0.05999014,3338.8,3338.2,3.0]
[1722265440163,1.03747053,3338.7,3338.1,0.890487]
[1722265440325,1.09746067,3338.6,3337.9,2.99588]
[1722265440530,1.03747053,3338.5,3338.0,3.0]
[1722265440878,0.05999014,3338.6,3338.0,3.0]
[1722265441032,2.99533,3338.6,3338.0,3.0]
[1722265441228,0.05999014,3338.5,3337.8,3.0]
[1722265441432,2.99524,3338.7,3337.9,3.05573167]
[1722265441433,0.05999014,3338.7,3337.9,3.05573167]
[1722265441675,0.05999014,3338.7,3338.0,2.99579]
[1722265441970,0.05999014,3338.7,3337.9,3.05572167]
[1722265442344,0.05999014,3338.7,3337.9,6.05155167]
[1722265442543,0.05999014,3338.7,3337.9,3.05572167]
[1722265442896,0.05999014,3338.7,3338.0,1.25603517]
[1722265443435,0.05999014,3338.7,3337.8,0.59961]
[1722265443436,2.99564,3338.2,3337.7,3.0]
[1722265443635,0.05999014,3338.1,3337.4,5.99632]
[1722265443939,0.05999014,3338.3,3337.6,2.99609]
[1722265444171,2.9953,3338.6,3337.7,6.05598803]
[1722265444489,0.05999014,3338.5,3337.8,3.0]
[1722265444654,0.05999014,3338.5,3337.3,5.90537]
[1722265444849,5.99102,3338.4,3337.5,2.99624]
[1722265445088,5.4362,3338.0,3337.4,3.0]
[1722265445250,0.05999014,3337.9,3337.2,5.99652]
[1722265445658,0.05999014,3337.9,3337.1,1.6458162]
[1722265445860,0.05999014,3337.9,3337.2,2.99644]
[1722265446052,0.05999014,3337.9,3337.3,3.76029962]
[1722265446271,2.4404,3338.0,3337.4,3.05622139]
[1722265446485,2.4404,3338.0,3337.3,3.67287962]
[1722265446486,2.281,3338.5,3337.8,2.99591]
[1722265446682,0.05999014,3338.4,3337.5,0.05991813]
[1722265446887,2.281,3338.5,3337.9,2.99583]
[1722265447100,2.281,3338.5,3338.0,2.99579]
[1722265447290,2.281,3338.5,3338.1,2.9957]
[1722265447491,2.281,3338.5,3337.9,2.99583]
[1722265447803,0.05999014,3338.4,3337.7,5.90501]
[1722265448004,0.05999014,3338.4,3337.8,3.0]
[1722265448377,2.281,3338.5,3337.9,2.99589]
[1722265448582,2.281,3338.5,3337.8,5.99591]
[1722265448766,2.281,3338.5,3337.9,2.99584]
[1722265449179,0.05999014,3338.7,3337.9,2.99583]
[1722265449885,0.05999014,3338.7,3338.1,2.9957]
[1722265450283,0.05999014,3338.7,3338.1,5.99134]
[1722265450480,0.05999014,3338.7,3337.8,4.190093]
[1722265450678,0.05999014,3338.7,3337.9,0.7099093]
[1722265450904,0.05999014,3338.7,3337.8,3.0]
[1722265450905,2.99535,3338.5,3337.8,3.0]
[1722265451089,0.05999014,3338.4,3337.6,3.0]
[1722265451289,2.414,3338.3,3337.4,5.99633]
[1722265451491,0.05999014,3338.2,3337.4,5.99627]
[1722265451675,0.05999014,3338.2,3337.5,0.96691496]
[1722265451881,2.2734,3338.7,3337.8,2.9959]
[1722265452102,0.05999014,3338.6,3337.8,2.9959]
[1722265452315,0.05999014,3338.6,3337.7,2.96891526]
[1722265452522,3.05526014,3338.6,3337.7,5.96493526]
[1722265452824,2.99546,3338.4,3337.5,2.99623]
[1722265453114,0.05999014,3338.3,3337.6,3.0]
[1722265453317,0.05999014,3338.3,3337.7,2.99602]
[1722265453619,0.05999014,3338.3,3337.6,3.0]
[1722265454020,2.2734,3338.7,3337.9,2.99581]
[1722265454219,0.05999014,3338.6,3337.9,2.99581]
[1722265455334,0.05999014,3338.6,3338.0,2.99575]
[1722265455618,0.05999014,3338.6,3337.9,2.99581]
[1722265455619,0.05999014,3338.6,3338.1,2.99571]
[1722265455925,0.05999014,3338.6,3337.5,2.99621]
[1722265456084,0.05999014,3338.6,3337.9,2.99589]
[1722265456281,0.05999014,3338.6,3338.0,2.99579]
[1722265456486,0.05999014,3338.6,3337.7,2.99599]
[1722265456709,0.05999014,3338.6,3337.9,2.99584]
[1722265457021,2.4237,3339.4,3338.2,2.909]
[1722265457222,0.05999014,3339.3,3338.6,2.99517]
[1722265457383,0.05999014,3339.3,3338.7,2.99516]
[1722265457581,2.4237,3339.4,3338.7,2.9951]
[1722265457781,2.382,3340.0,3338.9,2.99493]
[1722265458024,2.382,3340.0,3339.3,2.99458]
[1722265458427,2.382,3340.0,3339.2,2.99468]
[1722265458632,2.382,3340.0,3339.1,2.99481]
[1722265459130,2.382,3340.0,3339.2,3.05459991]
[1722265459337,2.382,3340.0,3339.4,5.98898]
[1722265459536,2.382,3340.0,3339.4,2.99448]
[1722265459845,2.382,3340.0,3339.3,0.0598865]
[1722265460141,2.382,3340.0,3339.3,3.0544465]
[1722265460728,2.382,3340.0,3339.3,3.95026115]
[1722265460903,2.5057984,3340.4,3339.6,2.99436]
[1722265461099,0.05999014,3340.3,3339.4,2.909]
[1722265461427,0.61593099,3340.2,3338.8,11.517507]
[1722265461640,2.99413,3339.9,3338.8,3.0]
[1722265461843,0.05999014,3339.8,3338.8,2.99506]
[1722265462019,0.05999014,3339.8,3338.9,5.99497]
[1722265462342,0.05999014,3339.8,3339.0,5.9949]
[1722265462718,0.05999014,3339.8,3339.0,3.898987]
[1722265463119,0.05999014,3340.0,3339.0,3.898987]
[1722265463320,0.05999014,3340.3,3339.1,3.0]
[1722265463505,2.99404,3340.0,3339.1,3.0]
[1722265463707,2.99428,3339.7,3339.1,3.0]
[1722265463906,3.05417014,3339.9,3339.1,3.0]
[1722265464109,2.9942,3339.8,3339.1,3.0]
[1722265464340,0.05999014,3339.7,3339.1,3.0]
[1722265464517,3.05409014,3339.9,3339.1,3.890397]
[1722265464712,0.05999014,3339.9,3339.1,3.0]
[1722265465117,2.99426,3339.8,3339.1,3.0]
[1722265465458,0.05999014,3339.7,3339.1,3.0]
[1722265465753,0.05999014,3339.8,3339.1,5.99479]
[1722265465912,0.05999014,3339.8,3339.1,7.184667]
[1722265466613,0.05999014,3339.9,3339.1,7.184667]
[1722265466813,0.05999014,3340.1,3339.2,3.05459642]
[1722265467018,2.99401,3340.0,3339.1,4.189877]
[1722265467248,2.9939,3340.2,3339.1,4.189877]
[1722265467249,2.99375,3340.3,3339.3,2.99462]
[1722265467543,2.99399,3340.1,3339.2,1.3088677]
[1722265467854,2.99412,3339.9,3339.2,1.3088677]
[1722265468059,0.05999014,3340.0,3339.2,1.3088677]
[1722265468239,0.05999014,3340.0,3339.3,1.02126777]
[1722265468413,2.5057984,3340.4,3339.3,4.02126777]
[1722265468414,3.05382014,3340.2,3339.3,4.02126777]
[1722265469011,3.05382014,3340.2,3339.3,7.01588777]
[1722265469562,3.05382014,3340.2,3339.3,4.02126777]
[1722265469766,3.05382014,3340.2,3339.3,1.02126777]
[1722265469943,0.05999014,3340.2,3339.4,1.00107278]
[1722265470270,0.05999014,3340.2,3339.4,1.0609566]
[1722265470566,3.05386014,3340.2,3339.4,1.00107278]
[1722265470767,0.05999014,3340.2,3339.3,1.02126777]
[1722265471136,0.05999014,3340.2,3339.4,0.05988385]
[1722265471767,3.05383014,3340.2,3339.4,0.05988385]
[1722265472070,3.05383014,3340.2,3339.3,1.02126777]
[1722265472071,2.99407,3340.0,3339.3,1.02126777]
[1722265472376,2.38999014,3339.9,3338.5,5.522467]
[1722265472576,5.38412014,3339.9,3338.9,2.99499]
[1722265472773,5.38412014,3339.9,3338.7,3.05500422]
[1722265472774,2.99432,3339.7,3338.7,3.05500422]
[1722265472932,2.99432,3339.7,3338.8,4.20360128]
[1722265473129,0.05999014,3339.7,3338.8,1.20854128]
[1722265473335,2.99407,3340.0,3339.0,5.90382]
[1722265473532,3.05406014,3340.0,3339.1,0.05988755]
[1722265473766,6.04815014,3340.0,3339.1,0.05988755]
[1722265473975,0.05999014,3340.0,3338.8,1.14864712]
[1722265474133,5.98851,3339.8,3338.8,1.14864712]
[1722265474336,0.05999014,3339.7,3338.8,1.14864712]
[1722265474678,2.99461,3339.4,3338.8,1.14864712]
[1722265474980,0.05999014,3339.3,3338.8,1.14864712]
[1722265475194,2.99474,3339.2,3338.3,2.2309]
[1722265475395,0.05999014,3339.1,3338.3,2.2309]
[1722265475673,3.05486014,3339.1,3338.3,2.2309]
[1722265475884,2.99515,3338.8,3338.3,0.2909]
[1722265476177,0.05999014,3339.1,3338.4,0.32809]
[1722265476487,2.99501,3338.9,3338.4,0.32809]
[1722265476770,0.05999014,3338.8,3338.4,0.32809]
[1722265476980,2.99527,3338.6,3338.4,0.32809]
[1722265477181,0.05999014,3339.1,3338.2,2.99]
[1722265477182,2.99518,3338.7,3338.2,2.99]
[1722265477476,0.05999014,3338.9,3338.2,2.99]
[1722265477683,2.99527,3338.6,3338.2,2.99]
[1722265477881,0.05999014,3338.7,3338.2,2.99]
[1722265478095,2.99494,3339.0,3338.3,0.299]
[1722265478267,0.05999014,3338.9,3338.3,0.299]
[1722265478449,0.05999014,3338.9,3338.3,3.299]
[1722265478647,3.05499014,3338.9,3338.3,3.299]
[1722265478970,2.4362,3339.5,3338.3,3.358907]
[1722265479173,2.99482,3339.1,3338.4,0.9257907]
[1722265479668,2.99464,3339.3,3338.4,0.9257907]
[1722265479669,2.99468,3339.3,3338.5,0.05990429]
[1722265479870,2.99483,3339.1,3338.5,0.05990429]
[1722265480283,0.05999014,3339.0,3338.4,0.9257907]
[1722265480495,3.05490014,3339.0,3338.5,1.01237907]
[1722265481382,0.05999014,3339.0,3338.5,1.01237907]
[1722265481546,3.05484014,3339.1,3338.5,1.01237907]
[1722265481869,3.05484014,3339.1,3338.3,3.299]
[1722265482186,2.99492,3339.0,3338.3,3.299]
[1722265482347,0.05999014,3338.9,3338.3,3.299]
[1722265482543,3.05499014,3338.9,3338.3,3.299]
[1722265482744,3.05499014,3338.9,3337.7,5.34165]
[1722265482745,2.99544,3338.4,3337.7,2.3456]
[1722265482944,0.05999014,3338.3,3337.7,2.3456]
[1722265483171,3.05558014,3338.3,3337.7,2.3456]
[1722265483345,0.05999014,3338.2,3337.7,2.3456]
[1722265483541,0.05999014,3338.2,3337.8,0.534183]
[1722265483789,0.05999014,3338.2,3337.4,2.909]
[1722265483979,3.05549014,3338.4,3337.4,5.90532]
[1722265484181,2.9957,3338.2,3337.4,2.909]
[1722265484382,0.05999014,3338.1,3337.5,3.0]
[1722265484848,2.99538,3338.5,3337.5,3.0]
[1722265485046,2.99467,3339.3,3337.8,2.909]
[1722265485273,3.05477014,3339.2,3338.2,2.99557]
[1722265485484,0.05999014,3339.2,3338.2,3.05547531]
[1722265485664,3.05471014,3339.2,3338.3,2.99553]
[1722265485846,3.05471014,3339.2,3338.2,0.05990531]
[1722265486049,0.05999014,3339.2,3338.3,0.83594053]
[1722265486592,2.99473,3339.2,3338.3,3.83594053]
[1722265486797,0.05999014,3339.1,3338.3,0.89584333]
[1722265486985,2.99498,3339.0,3338.3,0.83594053]
[1722265487297,0.05999014,3338.9,3338.3,0.83594053]
[1722265487457,0.05999014,3338.9,3338.4,0.68316405]
[1722265487786,2.99482,3339.1,3338.4,0.68316405]
[1722265487787,0.05999014,3339.0,3338.4,0.68316405]
[1722265488492,0.05999014,3339.0,3338.4,3.67860405]
[1722265488703,2.99456,3339.4,3338.4,3.67860405]
[1722265489005,2.4362,3339.5,3338.6,2.99525]
[1722265489305,2.4362,3339.5,3338.5,0.74834497]
[1722265489306,2.99475,3339.2,3338.5,0.74834497]
[1722265489463,0.05999014,3339.1,3338.5,3.74834497]
[1722265489904,3.05485014,3339.1,3338.5,0.74834497]
[1722265490109,2.99495,3339.0,3338.3,3.0]
[1722265490406,0.05999014,3338.9,3338.2,2.99556]
[1722265490580,2.99501,3338.9,3338.3,3.0]
[1722265490776,0.05999014,3338.8,3338.1,3.0]
[1722265491077,2.99527,3338.6,3337.9,3.0]
[1722265491277,2.3691,3339.0,3337.6,6.367793]
[1722265491278,3.05535014,3338.5,3337.6,6.367793]
[1722265491495,2.99549,3338.4,3337.6,3.371643]
[1722265491697,5.36405,3339.0,3337.3,2.99]
[1722265491698,2.99588,3338.0,3337.3,2.99]
[1722265491997,0.05999014,3338.0,3337.3,5.98638]
[1722265492304,2.99548,3338.4,3337.3,5.98638]
[1722265492305,0.05999014,3338.4,3337.7,2.99601]
[1722265492504,0.05999014,3338.7,3337.7,0.0599152]
[1722265492708,2.99558,3338.3,3337.7,0.59651252]
[1722265492908,0.05999014,3338.2,3337.7,0.59651252]
[1722265493068,3.05562014,3338.2,3337.7,0.59651252]
[1722265493265,3.05562014,3338.2,3337.3,2.99]
[1722265493509,3.05562014,3338.2,3337.3,5.98643]
[1722265493672,3.05562014,3338.2,3337.4,3.0]
[1722265493872,0.05999014,3338.1,3337.4,3.0]
[1722265494370,0.05999014,3338.1,3337.4,5.99627]
[1722265494705,2.99562,3338.2,3337.5,1.19827]
[1722265494906,0.05999014,3338.1,3337.5,1.19827]
[1722265495283,2.99565,3338.2,3337.5,1.19827]
[1722265495501,0.05999014,3338.1,3337.5,1.19827]
[1722265496284,2.99625,3337.5,3337.3,2.99]
[1722265496478,0.05999014,3337.4,3336.6,3.29801]
[1722265497206,5.30505,3338.1,3336.8,0.301]
[1722265497371,5.30505,3338.1,3337.1,2.99656]
[1722265497566,5.30505,3338.1,3337.2,0.30564856]
[1722265498180,2.9958,3338.0,3337.2,0.30564856]
[1722265498376,3.05588014,3337.9,3337.2,0.30564856]
[1722265499084,0.05999014,3337.9,3337.2,0.30564856]
[1722265499311,2.99555,3338.3,3337.3,3.05626585]
[1722265499312,5.99121,3338.3,3337.3,3.05626585]
[1722265499518,0.05999014,3338.2,3337.4,0.93584944]
[1722265499834,2.9956,3338.3,3337.4,0.93584944]
[1722265500047,2.9956,3338.3,3337.3,3.05626585]
[1722265500245,2.3221,3338.5,3337.5,0.0599221]
[1722265500400,2.99523,3338.7,3337.8,2.99598]
[1722265500721,2.99523,3338.7,3337.4,5.909]
[1722265500722,0.05999014,3338.6,3337.4,5.909]
[1722265500903,0.05999014,3338.6,3337.8,2.99597]
[1722265501304,2.99474,3339.2,3338.1,2.3494]
[1722265501504,0.05999014,3339.1,3338.3,5.99095]
[1722265501705,5.43609,3339.4,3338.4,0.05990401]
[1722265501706,2.4415,3339.4,3338.4,0.05990401]
[1722265501905,2.9944,3339.6,3338.6,2.99525]
[1722265502148,2.9946,3339.4,3338.4,6.58712441]
[1722265502305,2.99441,3339.6,3338.4,6.58712441]
[1722265502497,2.99453,3339.5,3338.5,0.94961244]
[1722265502697,2.99455,3339.4,3338.5,0.94961244]
[1722265502912,0.05999014,3339.3,3338.4,3.0]
[1722265503243,2.99508,3338.8,3337.8,2.99597]
[1722265503405,0.05999014,3338.7,3337.9,3.0]
[1722265503602,0.05999014,3338.9,3338.0,0.05990816]
[1722265503820,0.05999014,3338.9,3338.3,2.99545]
[1722265504120,2.4415,3339.4,3338.3,2.99545]
[1722265504121,5.43607,3339.4,3338.3,3.66044635]
[1722265504367,2.4415,3339.4,3338.6,2.99523]
[1722265504549,2.99429,3339.7,3338.7,3.05506112]
[1722265504740,2.99451,3339.5,3338.8,0.05989539]
[1722265504935,0.05999014,3339.4,3338.4,3.0]
[1722265505253,0.05999014,3339.4,3338.6,2.99526]
[1722265505442,0.05999014,3339.4,3338.7,0.05989537]
[1722265505857,2.9943,3339.7,3338.7,3.05506537]
[1722265506054,0.05999014,3339.7,3338.8,0.05989242]
[1722265506254,2.4007,3339.8,3338.8,3.57876166]
[1722265506453,2.4007,3339.8,3338.8,0.58375166]
[1722265506655,2.4007,3339.8,3338.9,2.99499]
[1722265507054,2.4007,3339.8,3338.9,3.05488272]
[1722265507264,2.99435,3339.7,3338.9,0.05989272]
[1722265507461,0.05999014,3339.8,3339.0,0.3578752]
[1722265507657,3.05420014,3339.8,3339.1,0.05988996]
[1722265507942,2.99429,3339.7,3339.1,0.05988996]
[1722265508149,2.99457,3339.4,3338.7,3.0]
[1722265508464,0.05999014,3339.3,3338.7,0.80788931]
[1722265508647,2.99505,3338.9,3337.9,2.4528]
[1722265508982,0.05999014,3339.3,3337.9,2.4528]
[1722265509278,5.28076,3339.4,3337.9,2.4528]
[1722265509279,2.99506,3338.9,3337.9,5.44867]
[1722265509493,0.05999014,3339.2,3337.9,5.44867]
[1722265509494,0.05999014,3338.8,3337.9,2.4528]
[1722265509692,2.99529,3338.6,3337.9,0.83518]
[1722265509866,0.05999014,3338.5,3337.9,0.83518]
[1722265510192,2.99575,3338.1,3337.8,2.99]
[1722265510494,2.99589,3337.9,3337.8,2.99]
[1722265510668,3.05588014,3337.9,3337.8,2.99]
[1722265510864,2.99589,3337.9,3337.8,2.99]
[1722265511077,2.99589,3337.9,3336.7,3.29796]
[1722265511389,0.05999014,3337.8,3336.9,0.301]
[1722265511588,0.05999014,3337.8,3336.9,3.29773]
[1722265512003,0.05999014,3337.9,3337.2,4.92652]
[1722265512179,0.05999014,3337.9,3337.2,1.93]
[1722265512394,3.05588014,3337.9,3337.2,1.93]
[1722265512708,2.99599,3337.8,3337.2,1.93]
[1722265513002,2.99574,3338.1,3337.2,1.93]
[1722265513308,0.05999014,3338.0,3337.2,2.743678]
[1722265513607,0.05999014,3338.0,3337.2,1.93]
[1722265513809,2.99595,3337.9,3336.8,0.301]
[1722265514118,0.05999014,3337.8,3336.8,3.301]
[1722265514273,0.05999014,3337.8,3336.9,1.521693]
[1722265514472,3.05599014,3337.8,3336.9,1.521693]
[1722265514773,2.99622,3337.6,3336.9,0.301]
[1722265515172,0.05999014,3337.7,3336.8,0.301]
[1722265515504,0.05999014,3337.7,3336.8,3.29782]
[1722265515868,3.05607014,3337.7,3336.8,3.29782]
[1722265516084,3.05607014,3337.7,3336.9,1.521387]
[1722265517400,0.05999014,3337.7,3337.0,0.05988034]
[1722265517609,0.05999014,3337.8,3337.0,3.05657034]
[1722265518410,2.99617,3337.6,3336.9,1.521387]
[1722265518611,3.05630014,3337.5,3336.9,0.301]
[1722265518913,0.05999014,3337.4,3336.9,0.301]
[1722265519751,0.05999014,3337.4,3336.5,0.301]
[1722265520030,2.9964,3337.4,3336.5,1.157846]
[1722265520238,0.05999014,3337.3,3336.5,1.157846]
[1722265520713,0.05999014,3337.5,3336.8,2.99686]
[1722265520887,3.05629014,3337.5,3336.6,2.909]
[1722265521088,3.05629014,3337.5,3336.6,4.2151256]
[1722265521448,0.05999014,3337.5,3336.6,4.2151256]
[1722265521736,2.99645,3337.3,3336.6,1.3061256]
[1722265521884,3.05651014,3337.2,3336.4,3.0]
[1722265522090,2.99652,3337.2,3336.4,3.0]
[1722265522499,2.4336,3337.7,3335.8,0.15100722]
[1722265522500,2.99675,3337.0,3335.9,5.42074]
[1722265522699,2.99689,3336.8,3336.0,3.0]
[1722265522932,2.99721,3336.5,3335.8,2.99]
[1722265523089,2.99725,3336.4,3335.8,2.99]
[1722265523454,0.05999014,3336.3,3335.8,2.99]
[1722265523627,0.05999014,3336.4,3335.9,0.299]
[1722265523985,0.05999014,3336.5,3335.9,0.299]
[1722265524385,2.99693,3336.8,3335.9,0.299]
[1722265524586,6.1545,3337.3,3335.8,2.99]
[1722265524587,2.99706,3336.6,3335.8,2.99]
[1722265524787,2.99733,3336.3,3335.8,2.99]
[1722265524988,0.05999014,3336.2,3335.8,2.99]
[1722265525222,3.05746014,3336.2,3335.8,2.99]
[1722265525418,0.05999014,3336.2,3335.8,2.99]
[1722265525830,0.05999014,3336.3,3335.8,3.289]
[1722265526456,3.05732014,3336.3,3335.8,3.289]
[1722265526603,0.05999014,3336.2,3335.8,2.99]
[1722265526804,2.99756,3336.1,3335.8,2.99]
[1722265527007,0.05999014,3336.0,3335.8,2.99]
[1722265527406,0.05999014,3336.0,3332.1,1.40714573]
[1722265527407,0.05999014,3336.0,3334.6,2.909]
[1722265527608,0.05999014,3336.0,3334.7,0.89589632]
[1722265527609,2.9981,3335.5,3334.7,0.89589632]
[1722265527934,3.05797014,3335.6,3334.8,0.0599673]
[1722265528116,2.99773,3335.9,3334.8,0.0599673]
[1722265528308,2.99755,3336.1,3334.8,0.0599673]
[1722265528309,2.99755,3336.1,3334.9,2.9985]
[1722265528509,2.99743,3336.2,3335.2,2.99831]
[1722265528723,2.3596,3336.5,3335.4,5.90707]
[1722265528922,2.99726,3336.4,3335.5,0.05995285]
[1722265529103,3.05725014,3336.4,3335.5,0.05995285]
[1722265529303,2.99744,3336.2,3335.5,0.05995285]
[1722265529520,0.05999014,3336.2,3335.5,0.05995285]
[1722265529854,0.05999014,3336.2,3335.6,0.89160498]
[1722265530243,2.99692,3336.8,3335.7,0.05995289]
[1722265530554,2.99724,3336.4,3335.6,0.89160498]
[1722265530756,3.05715014,3336.5,3335.6,3.94949427]
[1722265530931,2.99731,3336.4,3335.6,0.95155427]
[1722265531126,0.05999014,3336.3,3335.4,2.909]
[1722265531350,3.05734014,3336.3,3335.3,0.59672693]
[1722265531653,0.05999014,3336.2,3335.3,3.65484377]
[1722265531857,0.05999014,3336.2,3335.4,3.66361438]
[1722265532056,0.07653433,3336.1,3335.4,3.66361438]
[1722265532259,0.05999014,3336.2,3335.4,0.66548438]
[1722265532554,0.07648105,3336.0,3335.5,2.99804]
[1722265532754,0.05999014,3336.2,3335.4,0.72544093]
[1722265532960,0.07695243,3335.9,3335.4,0.72544093]
[1722265533255,0.05999014,3336.1,3335.5,0.43203779]
[1722265533428,0.07636145,3335.8,3335.4,0.66548438]
[1722265533761,0.07631306,3335.7,3335.4,0.66548438]
[1722265533963,3.05756014,3336.1,3335.4,0.66548438]
[1722265534253,0.0763964,3335.6,3335.4,0.66548438]
[1722265534458,0.05999014,3336.0,3335.4,0.66548438]
[1722265534756,0.05999014,3336.0,3335.2,3.0]
[1722265534945,0.07650602,3335.9,3335.2,3.0]
[1722265535332,3.05766014,3336.0,3335.0,2.909]
[1722265535532,3.13363776,3335.8,3335.0,2.909]
[1722265535766,0.05999014,3335.7,3334.9,2.99857]
[1722265535962,0.05999014,3335.7,3335.0,0.599724]
[1722265535963,0.13580937,3335.7,3335.0,0.599724]
[1722265536363,0.13580937,3335.7,3334.9,2.99857]
[1722265536937,0.07581923,3335.7,3335.0,0.05996597]
[1722265537263,2.99658,3337.2,3336.2,2.99735]
[1722265537425,2.99678,3337.0,3336.4,2.909]
[1722265537625,0.05999014,3336.9,3336.4,2.909]
[1722265537827,0.13367037,3336.9,3336.4,2.909]
[1722265538024,0.05999014,3336.9,3336.4,2.909]
[1722265538228,0.07106124,3336.8,3336.4,2.909]
[1722265539161,0.06898657,3336.7,3336.4,2.909]
[1722265539336,0.05999014,3336.9,3336.4,2.909]
[1722265539522,0.06912036,3336.6,3336.4,2.909]
[1722265539723,3.05680014,3336.9,3336.0,2.99757]
[1722265539933,0.06907201,3336.5,3336.1,3.0]
[1722265540132,0.05999014,3336.7,3336.0,2.909]
[1722265540368,0.06883467,3336.4,3336.0,2.909]
[1722265540572,0.05999014,3336.7,3336.0,2.909]
[1722265540938,0.05999014,3336.7,3336.0,5.90658]
[1722265541146,0.06906093,3336.6,3336.0,2.909]
[1722265541989,2.99715,3336.5,3336.0,2.909]
[1722265542183,2.99715,3336.5,3335.6,2.99792]
[1722265542184,0.06906093,3336.6,3335.7,2.99786]
[1722265542472,3.52916801,3336.7,3335.8,3.0]
[1722265542473,0.0639357,3336.4,3335.8,3.0]
[1722265542640,0.0639357,3336.4,3335.6,5.90692]
[1722265542641,1.09818649,3336.3,3335.6,2.909]
[1722265542970,1.09818649,3336.2,3335.6,2.909]
[1722265543150,1.03819635,3336.1,3335.6,2.909]
[1722265543359,1.09896947,3336.1,3336.0,2.909]
[1722265543876,1.09896947,3336.1,3335.7,2.909]
[1722265544074,1.03819635,3336.0,3335.7,2.909]
[1722265544244,1.03824576,3335.9,3335.7,2.909]
[1722265544445,1.03824576,3335.8,3335.7,2.909]
[1722265544642,1.09879661,3335.8,3335.7,2.909]
[1722265546245,1.09879661,3335.8,3335.3,2.909]
[1722265546430,1.03824576,3335.7,3335.3,2.909]
[1722265546629,1.03824576,3335.7,3335.5,2.99804]
[1722265546869,1.03824576,3335.7,3335.4,2.99813]
[1722265547041,1.03824576,3335.6,3335.4,2.99813]
[1722265547244,1.03824576,3336.0,3335.3,2.909]
[1722265547480,1.03837543,3335.9,3335.7,2.909]
[1722265547647,0.05831583,3335.9,3335.7,2.909]
[1722265547838,0.05999014,3336.6,3335.8,2.9977]
[1722265548034,1.03821172,3336.5,3335.9,2.99768]
[1722265548235,1.03823982,3336.4,3336.1,5.90643]
[1722265548474,0.05853233,3336.5,3336.1,3.50563837]
[1722265548683,0.05626333,3336.3,3336.1,2.909]
[1722265548835,1.03812878,3336.4,3336.1,2.909]
[1722265549037,1.03812932,3336.3,3336.1,2.909]
[1722265549263,0.05636321,3336.4,3336.1,5.90643]
[1722265549434,0.05999014,3336.6,3336.1,2.909]
[1722265549637,1.03818948,3336.5,3336.1,2.909]
[1722265549839,1.09816722,3336.4,3336.1,2.909]
[1722265550063,1.03817715,3336.3,3336.1,2.909]
[1722265550395,1.03817715,3336.3,3335.3,2.909]
[1722265550396,2.99764,3336.0,3335.3,2.909]
[1722265550544,4.50544802,3335.9,3335.3,2.909]
[1722265550884,1.03817715,3335.8,3335.3,2.909]
[1722265551037,0.11597699,3335.7,3335.3,2.909]
[1722265551245,1.03817715,3335.6,3335.3,2.909]
[1722265551581,0.05589006,3335.5,3335.3,2.909]
[1722265552083,5.40815,3336.0,3335.3,2.909]
[1722265552084,2.4105,3336.0,3335.3,2.909]
[1722265552243,1.09447482,3335.9,3335.4,2.99814]
[1722265552443,1.03835819,3335.8,3335.3,5.90716]
[1722265552643,0.05611663,3335.9,3335.3,5.90716]
[1722265552644,1.03835819,3335.7,3335.3,5.90716]
[1722265552979,1.09834833,3335.6,3335.1,5.90733]
[1722265553144,0.05999014,3335.6,3335.1,5.90733]
[1722265553477,1.03836694,3335.5,3335.1,5.90733]
[1722265553778,0.05999014,3335.9,3335.1,5.90733]
[1722265554085,0.05189117,3335.4,3335.1,2.909]
[1722265554289,1.03837485,3335.3,3335.1,2.909]
[1722265554443,0.05000604,3335.3,3335.1,5.9074]
[1722265554641,0.05000604,3335.3,3335.2,2.99832]
[1722265554881,0.05999014,3335.7,3335.2,2.99832]
[1722265555045,1.03840071,3335.6,3335.3,2.99821]
[1722265555246,1.03840071,3335.5,3335.4,2.99813]
[1722265555445,1.03840071,3335.5,3335.4,5.90713]
[1722265555681,2.2599,3336.6,3335.5,2.99802]
[1722265555898,1.03830384,3336.5,3335.9,2.99768]
[1722265556186,1.03830384,3336.4,3335.8,2.909]
[1722265556347,1.03830384,3336.3,3335.8,2.909]
[1722265556545,1.09829398,3336.2,3335.8,2.909]
[1722265556775,1.03830384,3336.1,3335.8,2.909]
[1722265556947,1.09829398,3336.0,3335.8,2.909]
[1722265557149,1.09829398,3335.9,3335.8,2.909]
[1722265557344,1.03830384,3335.9,3335.5,2.99798]
[1722265557572,1.03830384,3335.8,3335.5,2.99798]
[1722265557772,0.05999014,3336.3,3335.5,2.99798]
[1722265558048,1.03822824,3336.2,3336.1,2.99751]
[1722265558361,2.3182,3338.0,3336.9,2.99676]